bitfinex/quotes_SOLUSD_20251120
["timestamp","ask_amount","ask_price","bid_price","bid_amount"]
[1763636030141,0.2,142.36,142.34,3.36818892]
[1763636030338,0.2,142.36,142.34,2.65818892]
[1763636030532,7.9145562,142.36,142.34,3.36818892]
[1763636030737,7.9145562,142.36,142.34,0.39872834]
[1763636031645,7.9145562,142.36,142.34,1.10872834]
[1763636031855,7.9145562,142.36,142.34,0.71]
[1763636032446,0.2,142.36,142.35,2.65818892]
[1763636032643,0.2,142.36,142.35,2.76468892]
[1763636032946,0.2,142.36,142.35,0.71]
[1763636033558,0.2,142.36,142.35,13.26667697]
[1763636034257,0.2,142.36,142.35,6.69164728]
[1763636035162,0.2,142.36,142.35,2.65818892]
[1763636036359,0.2,142.36,142.35,10.39312745]
[1763636040654,0.2,142.36,142.35,22.99380709]
[1763636041858,4.55974968,142.45,142.39,18.12096]
[1763636042168,4.55974968,142.45,142.43,2.65818892]
[1763636042373,4.55974968,142.45,142.42,2.65818892]
[1763636042554,0.69,142.44,142.41,2.65818892]
[1763636042752,0.69,142.44,142.4,2.65818892]
[1763636043251,7.02099276,142.43,142.4,2.65818892]
[1763636043756,0.69,142.42,142.41,2.65818892]
[1763636043961,7.71099276,142.43,142.41,2.65818892]
[1763636044673,7.02067555,142.44,142.42,2.65818892]
[1763636044859,0.69,142.43,142.42,2.65818892]
[1763636047059,7.71067555,142.44,142.42,2.65818892]
[1763636047262,7.02067555,142.44,142.42,2.65818892]
[1763636047450,7.71067555,142.44,142.42,2.65818892]
[1763636047773,0.69,142.43,142.42,2.65818892]
[1763636048482,0.69,142.43,142.41,2.65818892]
[1763636049661,0.69,142.43,142.42,2.65818892]
[1763636052990,0.69,142.43,142.4,7.02225434]
[1763636053282,0.69,142.43,142.4,7.73225434]
[1763636053486,7.71101786,142.43,142.39,1.66]
[1763636053861,0.69,142.42,142.4,2.65818892]
[1763636055582,0.69,142.42,142.41,2.65818892]
[1763636060787,7.71148574,142.42,142.41,2.65818892]
[1763636061570,7.71148574,142.42,142.38,9.39322373]
[1763636061764,0.71,142.41,142.4,2.65818892]
[1763636063378,7.73197879,142.41,142.4,2.65818892]
[1763636063988,7.73197879,142.41,142.39,2.65818892]
[1763636064568,1.66,142.43,142.39,2.65818892]
[1763636064770,0.71,142.4,142.39,2.65818892]
[1763636065300,0.71,142.4,142.36,36.39135161]
[1763636065301,0.71,142.4,142.38,2.65818892]
[1763636065464,0.71,142.4,142.35,2.65818892]
[1763636065465,2.37,142.4,142.35,2.65818892]
[1763636065877,0.71,142.39,142.35,2.65818892]
[1763636066810,24.58210422,142.38,142.34,2.65818892]
[1763636067290,0.71,142.37,142.35,2.65818892]
[1763636068286,7.73415001,142.37,142.35,2.65818892]
[1763636068493,7.73395167,142.37,142.36,2.65818892]
[1763636068694,7.02395167,142.37,142.36,2.65818892]
[1763636069082,7.69395167,142.37,142.34,7.7350842]
[1763636069270,7.69395167,142.37,142.36,2.65818892]
[1763636071780,7.69395167,142.37,142.33,7.02578621]
[1763636071983,7.69395167,142.37,142.35,2.65818892]
[1763636071984,0.67,142.36,142.35,2.65818892]
[1763636072199,0.67,142.36,142.34,2.65818892]
[1763636073071,7.69449447,142.36,142.34,2.65818892]
[1763636073792,0.67,142.35,142.34,2.65818892]
[1763636074205,7.02449447,142.36,142.34,2.65818892]
[1763636074505,0.67,142.35,142.3,2.65818892]
[1763636075202,7.02543206,142.34,142.31,2.65818892]
[1763636075593,0.67,142.33,142.31,2.65818892]
[1763636076703,0.67,142.33,142.3,2.65818892]
[1763636076917,0.67,142.33,142.29,0.71]
[1763636077200,0.67,142.33,142.31,4.15423869]
[1763636077201,7.02641933,142.32,142.31,4.15423869]
[1763636077606,7.52641933,142.32,142.31,4.15423869]
[1763636077978,8.19641933,142.32,142.3,4.15423869]
[1763636078384,7.69641933,142.32,142.3,4.15423869]
[1763636078899,7.69609418,142.33,142.3,4.15423869]
[1763636079807,7.69609418,142.33,142.31,4.15423869]
[1763636081682,7.69609418,142.33,142.29,7.73779461]
[1763636081883,7.69609418,142.33,142.31,4.15423869]
[1763636084703,0.67,142.32,142.31,4.15423869]
[1763636085098,7.69609418,142.33,142.31,4.15423869]
[1763636087110,7.02609418,142.33,142.31,4.15423869]
[1763636087315,7.69609418,142.33,142.31,4.15423869]
[1763636087688,7.69609418,142.33,142.29,7.73779461]
[1763636087905,7.69609418,142.33,142.31,4.15423869]
[1763636091189,0.72,142.32,142.31,4.15423869]
[1763636091609,0.72,142.32,142.3,4.15423869]
[1763636092987,0.72,142.32,142.31,4.15423869]
[1763636096517,7.74641933,142.32,142.29,4.15423869]
[1763636096703,1.66,142.31,142.27,4.15423869]
[1763636096909,0.72,142.3,142.24,0.72]
[1763636097102,4.87423869,142.3,142.24,4.15423869]
[1763636097302,0.72,142.3,142.25,4.15423869]
[1763636097509,0.72,142.3,142.28,4.15423869]
[1763636097906,0.72,142.3,142.29,4.15423869]
[1763636098702,7.02726111,142.31,142.29,4.15423869]
[1763636099015,0.72,142.31,142.29,4.15423869]
[1763636100323,7.74695806,142.31,142.29,4.15423869]
[1763636102135,1.66,142.32,142.3,4.15423869]
[1763636102136,9.40656079,142.32,142.3,4.15423869]
[1763636102333,7.74656079,142.32,142.3,4.15423869]
[1763636102512,2.38,142.34,142.31,4.15423869]
[1763636102827,0.72,142.33,142.31,4.15423869]
[1763636104822,7.74595873,142.33,142.31,4.15423869]
[1763636107734,0.72,142.32,142.29,7.7478935]
[1763636108075,0.72,142.32,142.31,4.15423869]
[1763636111553,7.74641933,142.32,142.3,4.15423869]
[1763636113340,7.7461218,142.33,142.31,4.15423869]
[1763636113644,0.72,142.33,142.31,4.15423869]
[1763636113833,7.74600408,142.33,142.31,4.15423869]
[1763636114356,0.72,142.32,142.31,4.15423869]
[1763636115239,7.02600408,142.33,142.31,4.15423869]
[1763636115440,7.74600408,142.33,142.31,4.15423869]
[1763636118166,7.02600408,142.33,142.31,4.87423869]
[1763636118464,7.74600408,142.33,142.31,4.15423869]
[1763636119039,7.02600408,142.33,142.31,4.15423869]
[1763636119240,7.02600408,142.33,142.31,4.87423869]
[1763636119751,0.72,142.36,142.32,4.87423869]
[1763636119943,0.72,142.38,142.35,4.15423869]
[1763636120152,0.72,142.38,142.36,4.15423869]
[1763636121657,7.7434956,142.38,142.35,2.36]
[1763636121850,7.7434956,142.38,142.33,9.38570813]
[1763636122163,0.66,142.38,142.36,4.15423869]
[1763636122755,0.66,142.38,142.35,4.15423869]
[1763636123973,7.68371707,142.38,142.35,4.15423869]
[1763636124365,7.68371707,142.38,142.35,4.85423869]
[1763636125376,0.66,142.38,142.36,4.15423869]
[1763636125975,7.68346702,142.38,142.36,4.15423869]
[1763636130073,7.02303799,142.39,142.36,4.15423869]
[1763636130282,0.66,142.4,142.37,4.15423869]
[1763636131283,7.68258523,142.4,142.37,4.15423869]
[1763636131652,7.68316593,142.39,142.37,4.15423869]
[1763636131858,7.68316593,142.39,142.36,4.15423869]
[1763636132180,0.66,142.38,142.36,4.15423869]
[1763636132585,7.68316593,142.39,142.36,4.81423869]
[1763636133109,7.68316593,142.39,142.36,4.15423869]
[1763636133380,0.66,142.38,142.36,4.15423869]
[1763636134691,7.02316593,142.39,142.36,4.81423869]
[1763636134872,7.68316593,142.39,142.37,4.15423869]
[1763636136370,0.66,142.39,142.37,4.15423869]
[1763636138901,7.68298578,142.39,142.37,2.6564501]
[1763636139269,7.02298578,142.39,142.37,2.6564501]
[1763636139470,0.66,142.38,142.37,2.6564501]
[1763636144781,0.66,142.39,142.37,2.6564501]
[1763636146678,7.68300524,142.39,142.37,2.6564501]
[1763636147076,0.66,142.38,142.37,2.6564501]
[1763636147895,7.02271736,142.4,142.37,2.6564501]
[1763636148119,0.66,142.38,142.37,2.6564501]
[1763636150196,0.67,142.39,142.37,2.6564501]
[1763636152608,7.69298867,142.39,142.37,2.6564501]
[1763636153091,0.67,142.38,142.37,2.6564501]
[1763636154519,0.67,142.38,142.36,2.6564501]
[1763636155220,7.69365943,142.38,142.35,0.69]
[1763636155395,1.66,142.37,142.32,0.69]
[1763636155596,2.33,142.37,142.34,2.6564501]
[1763636155796,2.33,142.37,142.35,2.6564501]
[1763636156695,9.35404305,142.37,142.35,2.6564501]
[1763636156892,0.67,142.36,142.34,2.6564501]
[1763636157114,0.67,142.36,142.32,2.6564501]
[1763636159029,7.6948289,142.36,142.32,2.6564501]
[1763636159512,0.67,142.35,142.32,2.6564501]
[1763636160631,0.67,142.35,142.33,2.6564501]
[1763636161415,7.69510908,142.35,142.33,2.6564501]
[1763636165024,7.02510908,142.35,142.31,7.71671043]
[1763636165230,0.67,142.34,142.33,2.6564501]
[1763636165427,0.67,142.34,142.33,4.67364047]
[1763636165637,0.67,142.34,142.33,7.33009057]
[1763636165814,0.67,142.34,142.33,4.67364047]
[1763636166344,7.69554236,142.34,142.32,2.6564501]
[1763636170821,7.02641933,142.32,142.3,2.6564501]
[1763636171022,7.69641933,142.32,142.3,2.6564501]
[1763636171340,7.69641933,142.32,142.31,2.6564501]
[1763636171544,7.02641933,142.32,142.31,2.6564501]
[1763636172126,7.69641933,142.32,142.3,2.6564501]
[1763636172445,7.69641933,142.32,142.26,0.69]
[1763636172446,0.67,142.31,142.26,0.69]
[1763636172630,0.67,142.31,142.29,2.6564501]
[1763636172835,7.69706236,142.31,142.29,2.6564501]
[1763636174431,24.59127479,142.33,142.29,2.6564501]
[1763636174639,0.67,142.3,142.28,2.6564501]
[1763636175154,0.67,142.3,142.27,2.6564501]
[1763636175538,0.67,142.3,142.28,2.6564501]
[1763636177150,7.02790076,142.29,142.28,2.6564501]
[1763636177660,7.69790076,142.29,142.28,2.6564501]
[1763636179058,7.69790076,142.29,142.27,2.6564501]
[1763636179223,0.67,142.28,142.26,2.6564501]
[1763636180027,0.67,142.28,142.23,18.12096]
[1763636180225,2.6564501,142.27,142.22,0.1]
[1763636180440,2.6564501,142.27,142.22,2.7564501]
[1763636180643,0.69,142.26,142.22,2.7564501]
[1763636180841,7.02987697,142.25,142.23,2.6564501]
[1763636181227,0.69,142.24,142.23,2.6564501]
[1763636181648,0.69,142.24,142.22,0.1]
[1763636181845,0.69,142.24,142.22,2.7564501]
[1763636182841,7.03086549,142.23,142.22,2.7564501]
[1763636183052,7.03086549,142.23,142.22,0.1]
[1763636183258,7.72086549,142.23,142.22,0.1]
[1763636185365,17.50969318,142.23,142.22,0.1]
[1763636188360,7.03052202,142.24,142.22,2.7564501]
[1763636188553,7.69052202,142.24,142.22,2.7564501]
[1763636189754,7.03052202,142.24,142.22,3.4664501]
[1763636190069,7.03052202,142.24,142.22,2.7564501]
[1763636190366,7.69052202,142.24,142.22,2.7564501]
[1763636191168,7.03052202,142.24,142.22,2.7564501]
[1763636194967,7.69052202,142.24,142.22,2.7564501]
[1763636195770,7.69052202,142.24,142.22,0.1]
[1763636196842,0.66,142.23,142.22,0.1]
[1763636197041,7.69052202,142.24,142.22,0.1]
[1763636197370,7.03052202,142.24,142.22,0.1]
[1763636200272,7.03052202,142.24,142.22,0.81]
[1763636200948,7.03052202,142.24,142.22,0.1]
[1763636201150,7.69052202,142.24,142.22,0.1]
[1763636203760,7.03052202,142.24,142.22,0.1]
[1763636203957,7.69052202,142.24,142.22,0.1]
[1763636204665,7.69052202,142.24,142.22,4.25973538]
[1763636205275,0.66,142.24,142.22,4.25973538]
[1763636205578,8.69010977,142.25,142.22,4.96973538]
[1763636205761,9.35010977,142.25,142.22,4.96973538]
[1763636206780,0.66,142.27,142.24,4.15973538]
[1763636206956,0.66,142.28,142.25,4.15973538]
[1763636207156,7.83273328,142.3,142.25,4.15973538]
[1763636207157,0.66,142.27,142.25,4.15973538]
[1763636207357,2.32,142.29,142.25,4.86973538]
[1763636207563,0.66,142.28,142.25,4.86973538]
[1763636207966,7.68855763,142.28,142.25,4.86973538]
[1763636208198,7.68855763,142.28,142.25,4.15973538]
[1763636208356,0.66,142.27,142.25,4.15973538]
[1763636210172,7.68895335,142.27,142.25,4.15973538]
[1763636211572,7.02895335,142.27,142.26,4.15973538]
[1763636212147,7.02839471,142.28,142.26,4.15973538]
[1763636212352,0.66,142.27,142.26,4.15973538]
[1763636212552,7.02839471,142.28,142.26,4.15973538]
[1763636212861,7.68839471,142.28,142.26,4.15973538]
[1763636213570,7.68839471,142.28,142.25,4.15973538]
[1763636213774,7.68839471,142.28,142.25,4.81973538]
[1763636216662,7.02839471,142.28,142.26,4.81973538]
[1763636217078,7.02839471,142.28,142.26,4.15973538]
[1763636217373,7.02839471,142.28,142.26,4.81973538]
[1763636217676,0.66,142.28,142.26,4.15973538]
[1763636219181,25.25592409,142.3,142.26,4.81973538]
[1763636219365,7.68740688,142.3,142.28,4.15973538]
[1763636219957,10.44882769,142.32,142.29,4.15973538]
[1763636220192,0.66,142.32,142.31,4.15973538]
[1763636220363,0.66,142.32,142.29,4.15973538]
[1763636221183,7.6865877,142.32,142.28,4.15973538]
[1763636221387,13.94856307,142.31,142.23,18.78096]
[1763636221685,5.81973538,142.3,142.25,4.15973538]
[1763636221858,6.47973538,142.3,142.25,4.15973538]
[1763636222058,0.66,142.29,142.25,4.15973538]
[1763636222786,7.02839471,142.28,142.25,4.15973538]
[1763636223165,0.66,142.27,142.25,4.15973538]
[1763636223482,0.66,142.28,142.26,4.15973538]
[1763636223686,7.68808499,142.29,142.27,4.15973538]
[1763636225083,22.28069538,142.32,142.28,4.81973538]
[1763636225084,0.66,142.31,142.28,4.81973538]
[1763636225282,0.66,142.31,142.3,4.15973538]
[1763636225487,0.66,142.31,142.29,4.15973538]
[1763636226180,7.68713753,142.31,142.29,4.15973538]
[1763636228603,7.68713753,142.31,142.28,4.15973538]
[1763636228802,7.68713753,142.31,142.29,4.15973538]
[1763636239302,7.02713753,142.31,142.29,4.81973538]
[1763636239604,7.68668576,142.32,142.3,4.15973538]
[1763636240103,0.7,142.33,142.31,4.15973538]
[1763636241210,7.72607706,142.33,142.31,4.15973538]
[1763636241394,0.7,142.32,142.29,4.15973538]
[1763636241594,0.7,142.32,142.28,5.81973538]
[1763636241799,0.7,142.32,142.28,6.50973538]
[1763636242399,7.02691307,142.31,142.28,6.50973538]
[1763636242592,7.02691307,142.31,142.28,4.84973538]
[1763636242904,7.72691307,142.31,142.28,4.84973538]
[1763636243717,0.7,142.3,142.28,4.15973538]
[1763636243889,0.7,142.3,142.27,5.81973538]
[1763636244093,0.7,142.3,142.27,6.50973538]
[1763636244395,7.02790076,142.29,142.25,5.81973538]
[1763636244596,7.02790076,142.29,142.26,4.6743991]
[1763636244913,0.7,142.28,142.25,6.50973538]
[1763636245099,0.7,142.28,142.26,4.67481623]
[1763636245300,0.7,142.28,142.25,6.50973538]
[1763636245500,0.7,142.28,142.26,4.67623548]
[1763636245702,0.7,142.28,142.25,6.50973538]
[1763636245898,0.7,142.28,142.26,4.67620466]
[1763636246117,0.7,142.28,142.25,13.5395548]
[1763636246318,7.72853153,142.28,142.26,4.67643249]
[1763636246618,7.72853153,142.28,142.25,4.84973538]
[1763636246800,7.72853153,142.28,142.26,4.67721469]
[1763636247098,7.72853153,142.28,142.25,4.84973538]
[1763636247301,7.72853153,142.28,142.26,4.67743624]
[1763636247500,7.72853153,142.28,142.25,4.84973538]
[1763636247810,7.72853153,142.28,142.26,4.67878339]
[1763636247995,7.72853153,142.28,142.25,4.84973538]
[1763636248198,7.72853153,142.28,142.26,4.67878567]
[1763636248512,7.72853153,142.28,142.27,4.68003832]
[1763636250096,7.68740688,142.3,142.27,9.5297737]
[1763636250298,7.68740688,142.3,142.27,4.84973538]
[1763636250706,0.66,142.29,142.27,4.15973538]
[1763636251329,7.68814368,142.29,142.27,4.15973538]
[1763636257219,7.02814368,142.29,142.26,0.69]
[1763636257419,0.66,142.28,142.27,4.6902604]
[1763636259019,7.68839471,142.28,142.27,4.6902604]
[1763636259222,2.32,142.29,142.27,8.84999578]
[1763636259424,0.66,142.29,142.27,4.15973538]
[1763636259625,7.68801094,142.29,142.27,4.15973538]
[1763636260813,7.68801094,142.29,142.27,2.66005918]
[1763636262401,7.02801094,142.29,142.27,3.35005918]
[1763636262928,0.66,142.32,142.28,8.03856815]
[1763636263120,0.66,142.31,142.3,2.66005918]
[1763636263926,7.68674388,142.32,142.3,2.66005918]
[1763636264332,0.66,142.31,142.3,2.66005918]
[1763636265206,7.68691307,142.31,142.3,2.66005918]
[1763636266501,7.68691307,142.31,142.29,2.66005918]
[1763636271729,7.68691307,142.31,142.3,2.66005918]
[1763636272431,12.00697225,142.31,142.26,8.51947663]
[1763636272636,0.68,142.3,142.27,4.68985232]
[1763636272837,0.68,142.3,142.28,4.68985232]
[1763636273047,0.68,142.3,142.26,2.66005918]
[1763636273261,5.36985232,142.3,142.27,4.68977654]
[1763636273546,5.36985232,142.3,142.28,4.68977654]
[1763636273724,5.36985232,142.3,142.26,2.66005918]
[1763636273725,0.68,142.29,142.26,2.66005918]
[1763636273921,0.68,142.29,142.27,4.68979383]
[1763636274118,0.68,142.29,142.28,4.68979383]
[1763636274543,26.93765267,142.29,142.25,2.66005918]
[1763636274745,26.93765267,142.29,142.26,7.35020378]
[1763636274942,0.68,142.28,142.27,4.6901446]
[1763636276131,7.70839471,142.28,142.27,7.35020378]
[1763636279527,7.70839471,142.28,142.27,12.56094327]
[1763636281049,7.02839471,142.28,142.27,12.56094327]
[1763636282244,7.70839471,142.28,142.27,12.56094327]
[1763636282551,7.02839471,142.28,142.27,12.56094327]
[1763636284136,7.70839471,142.28,142.27,12.56094327]
[1763636284461,7.02839471,142.28,142.27,12.56094327]
[1763636285442,17.56913784,142.3,142.27,12.56094327]
[1763636285643,0.68,142.29,142.28,5.21073949]
[1763636286041,0.68,142.29,142.28,5.20762349]
[1763636287668,7.70790076,142.29,142.28,5.20762349]
[1763636288368,7.70790076,142.29,142.27,2.66005918]
[1763636288554,7.02790076,142.29,142.28,5.20701896]
[1763636289267,7.70790076,142.29,142.28,9.89300738]
[1763636292365,7.70790076,142.29,142.28,9.88928996]
[1763636292765,7.02790076,142.29,142.28,9.88928996]
[1763636292958,7.02790076,142.29,142.28,12.54934914]
[1763636293474,7.70790076,142.29,142.28,12.54934914]
[1763636293962,7.70740688,142.3,142.28,12.54934914]
[1763636294144,7.70740688,142.3,142.29,5.20279997]
[1763636298302,6.86279997,142.31,142.29,7.86285915]
[1763636298474,16.81496794,142.33,142.29,7.86285915]
[1763636298475,0.68,142.33,142.3,12.54728331]
[1763636298675,0.68,142.32,142.3,2.66005918]
[1763636298851,7.70653847,142.32,142.3,2.66005918]
[1763636299278,0.68,142.32,142.3,2.66005918]
[1763636299679,7.7065934,142.32,142.3,2.66005918]
[1763636299876,7.7065934,142.32,142.31,5.20348533]
[1763636300077,0.68,142.32,142.31,5.20348533]
[1763636300764,9.37605341,142.33,142.31,7.86354451]
[1763636301077,9.37605341,142.33,142.31,2.66005918]
[1763636302360,9.37605341,142.33,142.31,3.36005918]
[1763636302559,9.37605341,142.33,142.31,2.66005918]
[1763636303455,0.69,142.34,142.31,0.7]
[1763636303780,0.69,142.34,142.29,8.68788737]
[1763636303781,0.69,142.34,142.32,7.85745032]
[1763636303971,0.69,142.34,142.32,2.66005918]
[1763636305166,26.93746101,142.35,142.33,2.66005918]
[1763636305667,26.93746101,142.35,142.32,3.36005918]
[1763636305880,26.24746101,142.35,142.32,2.66005918]
[1763636306083,0.69,142.34,142.32,2.66005918]
[1763636307085,7.71572995,142.34,142.32,2.66005918]
[1763636307671,7.02488521,142.36,142.33,13.22930298]
[1763636307870,7.02488521,142.36,142.34,7.8554431]
[1763636308182,7.70488521,142.36,142.34,2.66005918]
[1763636309684,7.70488521,142.36,142.33,0.7]
[1763636309881,7.70488521,142.36,142.34,7.84868152]
[1763636310068,7.70488521,142.36,142.34,2.66005918]
[1763636310783,0.68,142.35,142.31,9.40669154]
[1763636310987,0.68,142.35,142.33,2.66005918]
[1763636311788,24.58599788,142.36,142.33,2.66005918]
[1763636311981,25.26599788,142.36,142.33,3.38005918]
[1763636313309,0.68,142.35,142.33,2.66005918]
[1763636314777,7.70535519,142.35,142.33,2.66005918]
[1763636315477,7.70535519,142.35,142.33,2.22250333]
[1763636315677,7.70535519,142.35,142.32,0.72]
[1763636315989,0.68,142.34,142.33,2.66005918]
[1763636316790,7.70543206,142.34,142.33,2.66005918]
[1763636316981,7.02543206,142.34,142.33,2.66005918]
[1763636320896,7.02543206,142.34,142.33,4.15276349]
[1763636325093,7.70515041,142.35,142.33,4.15276349]
[1763636325289,7.70515041,142.35,142.34,4.15276349]
[1763636325595,7.02515041,142.35,142.34,4.15276349]
[1763636326295,7.02515041,142.35,142.34,4.87276349]
[1763636326793,7.02444506,142.36,142.34,4.15276349]
[1763636327099,7.70444506,142.36,142.34,4.15276349]
[1763636328097,14.73076643,142.36,142.34,4.15276349]
[1763636333771,14.73076643,142.36,142.34,4.81276349]
[1763636333976,14.05076643,142.36,142.34,4.81276349]
[1763636334209,2.36,142.38,142.35,0.66]
[1763636334511,2.36,142.38,142.35,4.81276349]
[1763636334801,9.38369863,142.38,142.35,4.81276349]
[1763636335106,26.9423445,142.38,142.35,4.81276349]
[1763636335899,0.7,142.37,142.35,4.81276349]
[1763636336101,7.02444506,142.36,142.35,4.15276349]
[1763636337293,7.02444506,142.36,142.35,4.81276349]
[1763636338808,7.02395167,142.37,142.35,4.81276349]
[1763636340209,7.72395167,142.37,142.35,4.15276349]
[1763636341483,7.02395167,142.37,142.36,4.15276349]
[1763636341914,7.72395167,142.37,142.36,4.15276349]
[1763636343116,7.02395167,142.37,142.36,4.15276349]
[1763636343340,7.72395167,142.37,142.36,4.15276349]
[1763636346322,7.02395167,142.37,142.36,4.15276349]
[1763636346696,7.72395167,142.37,142.36,4.15276349]
[1763636347223,7.72395167,142.37,142.36,8.82985043]
[1763636347634,7.02395167,142.37,142.36,8.82985043]
[1763636347808,0.7,142.37,142.36,8.82985043]
[1763636348000,7.02369331,142.38,142.36,9.48985043]
[1763636348328,7.02369331,142.38,142.37,4.15276349]
[1763636348501,7.72315445,142.39,142.37,4.81276349]
[1763636348710,7.02315445,142.39,142.38,4.15276349]
[1763636349220,7.72315445,142.39,142.38,4.15276349]
[1763636349926,7.02315445,142.39,142.38,4.15276349]
[1763636350128,7.72315445,142.39,142.38,4.15276349]
[1763636350305,7.72315445,142.39,142.37,4.15276349]
[1763636350813,0.7,142.38,142.35,4.15276349]
[1763636350999,0.7,142.38,142.36,4.67688462]
[1763636351199,0.7,142.38,142.35,4.15276349]
[1763636351408,0.7,142.38,142.36,4.67758471]
[1763636351629,0.7,142.38,142.36,4.15276349]
[1763636351800,7.72373978,142.38,142.36,4.15276349]
[1763636359612,7.72373978,142.38,142.35,0.66]
[1763636359809,7.72373978,142.38,142.36,8.82860578]
[1763636360012,7.02373978,142.38,142.36,4.15276349]
[1763636360315,7.69373978,142.38,142.36,4.15276349]
[1763636360506,7.69373978,142.38,142.35,2.32]
[1763636360932,0.67,142.37,142.35,1.66]
[1763636361438,7.69433669,142.37,142.35,1.66]
[1763636364025,7.69433669,142.37,142.35,2.33]
[1763636364732,7.69433669,142.37,142.35,1.66]
[1763636365138,7.02433669,142.37,142.34,4.15276349]
[1763636365320,0.67,142.36,142.35,4.6786967]
[1763636365525,7.69433669,142.37,142.35,4.6786967]
[1763636365728,7.69433669,142.37,142.34,6.48276349]
[1763636365935,7.69433669,142.37,142.35,4.67879866]
[1763636366137,7.69433669,142.37,142.34,6.48276349]
[1763636366441,7.69433669,142.37,142.35,4.67917141]
[1763636366641,7.69433669,142.37,142.34,6.48276349]
[1763636366843,7.69433669,142.37,142.35,4.67928323]
[1763636367151,7.69433669,142.37,142.34,6.48276349]
[1763636367314,7.69433669,142.37,142.35,4.67981274]
[1763636367517,7.69433669,142.37,142.34,6.48276349]
[1763636367836,7.69433669,142.37,142.35,4.67981274]
[1763636368021,7.69433669,142.37,142.34,6.48276349]
[1763636368351,7.69433669,142.37,142.35,4.68006695]
[1763636368542,7.69433669,142.37,142.34,6.48276349]
[1763636368840,7.69433669,142.37,142.35,4.68016444]
[1763636369036,7.69433669,142.37,142.34,6.48276349]
[1763636369243,7.69433669,142.37,142.35,4.68056924]
[1763636369450,7.69433669,142.37,142.34,6.48276349]
[1763636369617,7.69433669,142.37,142.35,4.68117363]
[1763636369817,7.69433669,142.37,142.34,6.48276349]
[1763636370118,7.69433669,142.37,142.35,4.68117363]
[1763636370318,7.69433669,142.37,142.34,6.48276349]
[1763636370518,7.69433669,142.37,142.35,4.68184158]
[1763636370815,7.69433669,142.37,142.34,6.48276349]
[1763636371017,7.69433669,142.37,142.35,4.6818734]
[1763636371340,7.69433669,142.37,142.34,6.48276349]
[1763636371528,7.69433669,142.37,142.35,4.68213198]
[1763636371732,7.69433669,142.37,142.34,6.48276349]
[1763636372028,7.69433669,142.37,142.35,4.68258101]
[1763636372231,7.69433669,142.37,142.34,6.48276349]
[1763636372531,7.69433669,142.37,142.35,4.68282933]
[1763636372729,7.69433669,142.37,142.34,6.48276349]
[1763636372937,7.69433669,142.37,142.35,4.68282933]
[1763636373141,7.69433669,142.37,142.34,2.33]
[1763636373443,7.69433669,142.37,142.35,4.68303727]
[1763636373650,7.69433669,142.37,142.34,6.48276349]
[1763636373818,7.69433669,142.37,142.35,4.68309232]
[1763636374019,7.69433669,142.37,142.34,6.48276349]
[1763636374220,7.69433669,142.37,142.35,4.68287487]
[1763636374421,7.69433669,142.37,142.34,6.48276349]
[1763636374637,7.69433669,142.37,142.35,4.68292277]
[1763636374921,7.69433669,142.37,142.34,6.48276349]
[1763636375127,7.69433669,142.37,142.35,4.68292241]
[1763636375321,7.69433669,142.37,142.34,6.48276349]
[1763636375619,7.69433669,142.37,142.35,4.68322125]
[1763636375846,7.69433669,142.37,142.34,6.48276349]
[1763636376123,7.69433669,142.37,142.35,4.68322125]
[1763636376324,7.69433669,142.37,142.36,4.68322125]
[1763636377734,24.58295273,142.38,142.36,4.68322125]
[1763636378052,24.58295273,142.38,142.34,1.66]
[1763636378053,4.15276349,142.37,142.34,1.66]
[1763636378369,4.15276349,142.37,142.35,4.68506426]
[1763636378370,4.80276349,142.37,142.35,4.68506426]
[1763636378566,0.65,142.36,142.34,1.66]
[1763636378859,0.65,142.36,142.35,4.68480948]
[1763636380359,7.67444506,142.36,142.35,4.68480948]
[1763636383034,7.67444506,142.36,142.34,1.66]
[1763636383227,0.65,142.35,142.34,1.66]
[1763636383429,0.65,142.35,142.34,6.3439041]
[1763636385539,7.67493853,142.35,142.34,6.3439041]
[1763636386056,7.02493853,142.35,142.34,6.3439041]
[1763636387854,7.02493853,142.35,142.34,4.6839041]
[1763636391750,7.02493853,142.35,142.34,4.68052091]
[1763636397258,7.02493853,142.35,142.34,7.33843137]
[1763636398674,7.02493853,142.35,142.34,2.65791046]
[1763636398848,7.02493853,142.35,142.34,7.34039631]
[1763636399355,9.83716506,142.36,142.34,8.06039631]
[1763636399549,9.83716506,142.36,142.35,8.06039631]